Workbook

Sheet Duration Tool
B2: F | C2: Inputs | D2: Description
B4: ROE | C4: -0.036754986 | D4: Current Earnings / Prior Year Book Value
B5: Terminal ROE | C5: 0.12 | D5: Assumes ROE normalizes to 12%
B6: Sales Growth | C6: -0.184451572 | D6: Trailing 1-Year Sales Growth
B7: Terminal Growth | C7: 0.02 | D7: Assumes sales growth normalizes to 2%
B8: Years to Terminal | C8: 15 | D8: Calculations of cash flows are estimated for next 15 years
B9: Discount Rate | C9: 0.06 | D9: All cash flows are discounted back at a 6% rate
B10: Market Value | C10: 48739.01375 | D10: Current market cap
B11: % Mcap Unexplained | C11: 0.5611633101 | D11: % of market cap not explained by the 15 years of discounted cash flows
B12: Duration | C12: 30.09621492 | D12: Duration = 15 year DCF + Unexplained market cap
B13: Definitions
B14: FCF = (ROE - BV Growth) * BV-1
B15: BV Growth = Sales Growth
B16: ROE normalizes at 1/15th of spread to terminal
B17: Sales growth normalizes at 1/15th of spread to terminal
B18: TV = Market Cap - 15 year DCF
B19: TV Cash Flows = Unexplained market cap divided by 15th year discounted cash flow
B21: © Kailash Capital, LLC
A101: ='Duration Tool'!B2 -> F | B101: Curr | C101: Tgt | D101: NumPers
A102: ROE | B102: =IF(ISNUMBER(INDEX(Lookup!$D$2:$O$4753,MATCH($A$101,Lookup!$C$2:$C$4753,0),MATCH("np_roe",Lookup!$D$1:$O$1,0))),INDEX(Lookup!$D$2:$O$4753,MATCH($A$101,Lookup!$C$2:$C$4753,0),MATCH("np_roe",Lookup!$D$1:$O$1,0)),NA()) -> -0.036754986 | C102: ='Duration Tool'!C5 -> 0.12 | D102: 15
A103: Sales Growth | B103: =IF(ISNUMBER(INDEX(Lookup!$D$2:$O$4753,MATCH($A$101,Lookup!$C$2:$C$4753,0),MATCH("SALE_1YR_GRTH",Lookup!$D$1:$O$1,0))),INDEX(Lookup!$D$2:$O$4753,MATCH($A$101,Lookup!$C$2:$C$4753,0),MATCH("SALE_1YR_GRTH",Lookup!$D$1:$O$1,0)),NA()) -> -0.184451572 | C103: ='Duration Tool'!C7 -> 0.02 | D103: 15
A104: Book Value | B104: =IF(ISNUMBER(INDEX(Lookup!$D$2:$O$4753,MATCH($A$101,Lookup!$C$2:$C$4753,0),MATCH("SEQQR_ADJ",Lookup!$D$1:$O$1,0))),INDEX(Lookup!$D$2:$O$4753,MATCH($A$101,Lookup!$C$2:$C$4753,0),MATCH("SEQQR_ADJ",Lookup!$D$1:$O$1,0)),NA()) -> 32280
A105: Book Value (1-Year Ago) | B105: =IF(ISNUMBER(INDEX(Lookup!$D$2:$O$4753,MATCH($A$101,Lookup!$C$2:$C$4753,0),MATCH("SEQ_1YR_VAL",Lookup!$D$1:$O$1,0))),INDEX(Lookup!$D$2:$O$4753,MATCH($A$101,Lookup!$C$2:$C$4753,0),MATCH("SEQ_1YR_VAL",Lookup!$D$1:$O$1,0)),NA()) -> 34798
A106: Earnings | B106: =IF(ISNUMBER(INDEX(Lookup!$D$2:$O$4753,MATCH($A$101,Lookup!$C$2:$C$4753,0),MATCH("IBQR_R4Q",Lookup!$D$1:$O$1,0))),INDEX(Lookup!$D$2:$O$4753,MATCH($A$101,Lookup!$C$2:$C$4753,0),MATCH("IBQR_R4Q",Lookup!$D$1:$O$1,0)),NA()) -> -1279
A107: Market Value | B107: =IF(ISNUMBER(INDEX(Lookup!$D$2:$O$4753,MATCH($A$101,Lookup!$C$2:$C$4753,0),MATCH("NP_MCAP",Lookup!$D$1:$O$1,0))),INDEX(Lookup!$D$2:$O$4753,MATCH($A$101,Lookup!$C$2:$C$4753,0),MATCH("NP_MCAP",Lookup!$D$1:$O$1,0)),NA()) -> 48739.01375
A108: Discount Rate | B108: ='Duration Tool'!C9 -> 0.06
A109: TV Growth in FCF | B109: =E129/E128-1 -> -0.02464419935
A110: % Mcap Unexplained | B110: =F130/B107 -> 0.5611633101
A111: Duration | B111: =IF(OR(F133<0,F133>100),100,F133) -> 30.09621492
A112: Duration (CHECK) | B112: =IF(ISNUMBER(INDEX(Lookup!$D$2:$O$4753,MATCH($A$101,Lookup!$C$2:$C$4753,0),MATCH("duration",Lookup!$D$1:$O$1,0))),INDEX(Lookup!$D$2:$O$4753,MATCH($A$101,Lookup!$C$2:$C$4753,0),MATCH("duration",Lookup!$D$1:$O$1,0)),NA()) -> 30.09621502
A114: Period | B114: ROE | C114: BV Growth | D114: BV(t-1) | E114: Cash Flow | F114: Current Value | G114: TW CV
A115: 1 | B115: =IF($A115<=$D$102,B102-($B$102-$C$102)/$D$102,$C$102) -> -0.0263046536 | C115: =IF($A115<=$D$103,B103-($B$103-$C$103)/$D$103,$C$103) -> -0.1708214672 | D115: =B104 -> 32280 | E115: =D115*(B115-C115) -> 4665.002743 | F115: =E115/(1+$B$108)^A115 -> 4400.945984 | G115: =A115*F115 -> 4400.945984
A116: 2 | B116: =IF($A116<=$D$102,B115-($B$102-$C$102)/$D$102,$C$102) -> -0.0158543212 | C116: =IF($A116<=$D$103,C115-($B$103-$C$103)/$D$103,$C$103) -> -0.1571913624 | D116: =ABS(D115)*C115+D115 -> 26765.88304 | E116: 3783.010714 | F116: =IF(SUM($F$115:F115)>$B$107,0,E116/(1+$B$108)^A116) -> 3366.866068 | G116: 6733.732136
A117: 3 | B117: -0.0054039888 | C117: -0.1435612576 | D117: 22558.51742 | E117: 3116.623155 | F117: =IF(SUM($F$115:F116)>$B$107,0,E117/(1+$B$108)^A117) -> 2616.776899 | G117: 7850.330696
A118: 4 | B118: 0.0050463436 | C118: -0.1299311528 | D118: 19319.98829 | E118: 2607.76365 | F118: =IF(SUM($F$115:F117)>$B$107,0,E118/(1+$B$108)^A118) -> 2065.593062 | G118: 8262.372248
A119: 5 | B119: 0.015496676 | C119: -0.116301048 | D119: 16809.71994 | E119: 2215.482829 | F119: =IF(SUM($F$115:F118)>$B$107,0,E119/(1+$B$108)^A119) -> 1655.537651 | G119: 8277.688254
A120: 6 | B120: 0.0259470084 | C120: -0.1026709432 | D120: 14854.73189 | E120: 1910.585188 | F120: =IF(SUM($F$115:F119)>$B$107,0,E120/(1+$B$108)^A120) -> 1346.887166 | G120: 8081.322998
A121: 7 | B121: 0.0363973408 | C121: -0.0890408384 | D121: 13329.58256 | E121: 1672.038566 | F121: =IF(SUM($F$115:F120)>$B$107,0,E121/(1+$B$108)^A121) -> 1112.001142 | G121: 7784.007996
A122: 8 | B122: 0.0468476732 | C122: -0.0754107336 | D122: 12142.70535 | E122: 1484.547811 | F122: =IF(SUM($F$115:F121)>$B$107,0,E122/(1+$B$108)^A122) -> 931.4236622 | G122: 7451.389297
A123: 9 | B123: 0.0572980056 | C123: -0.0617806288 | D123: 11227.01503 | E123: 1336.897619 | F123: =IF(SUM($F$115:F122)>$B$107,0,E123/(1+$B$108)^A123) -> 791.3076463 | G123: 7121.768817
A124: 10 | B124: 0.067748338 | C124: -0.048150524 | D124: 10533.40298 | E124: 1220.809419 | F124: =IF(SUM($F$115:F123)>$B$107,0,E124/(1+$B$108)^A124) -> 681.6936031 | G124: 6816.936031
A125: 11 | B125: 0.0781986704 | C125: -0.0345204192 | D125: 10026.21411 | E125: 1130.145727 | F125: =IF(SUM($F$115:F124)>$B$107,0,E125/(1+$B$108)^A125) -> 595.3466707 | G125: 6548.813378
A126: 12 | B126: 0.0886490028 | C126: -0.0208903144 | D126: 9680.104997 | E126: 1060.352092 | F126: =IF(SUM($F$115:F125)>$B$107,0,E126/(1+$B$108)^A126) -> 526.9625042 | G126: 6323.550051
A127: 13 | B127: 0.0990993352 | C127: -0.0072602096 | D127: 9477.884561 | E127: 1008.063488 | F127: =IF(SUM($F$115:F126)>$B$107,0,E127/(1+$B$108)^A127) -> 472.6194999 | G127: 6144.053498
A128: 14 | B128: 0.1095496676 | C128: 0.0063698952 | D128: 9409.073132 | E128: 970.8260243 | F128: =IF(SUM($F$115:F127)>$B$107,0,E128/(1+$B$108)^A128) -> 429.3972868 | G128: 6011.562015
A129: 15 | B129: 0.12 | C129: 0.02 | D129: 9469.007942 | E129: 946.9007942 | F129: =IF(SUM($F$115:F128)>$B$107,0,E129/(1+$B$108)^A129) -> 395.1086174 | G129: 5926.629261
A130: TV | F130: =IF(B107-SUM(F115:F129)>0,B107-SUM(F115:F129),0) -> 27350.54629
E131: Additional Periods | F131: =IF(F130>0,ROUND(F130/F129,0),0) -> 69
F133: =SUMPRODUCT(F115:F129,A115:A129)/B107+F131/2*(16+F131+15)*F129/B107 -> 30.09621492
A135: OUTPUT | B135: =UPPER(TicCell) -> F
A136: ROE | B136: =B102 -> -0.036754986
A137: Terminal ROE | B137: ='Duration Tool'!C5 -> 0.12
A138: Sales Growth | B138: =B103 -> -0.184451572
A139: Terminal Growth | B139: ='Duration Tool'!C7 -> 0.02
A140: Years to Terminal | B140: =D102 -> 15
A141: Discount Rate | B141: ='Duration Tool'!C9 -> 0.06
A142: Market Value | B142: =B107 -> 48739.01375
A143: % Mcap Unexplained | B143: =B110 -> 0.5611633101
A144: Duration | B144: =B111 -> 30.09621492

Sheet Lookup (hidden)
A1: caldt | B1: gvkey | C1: tic | D1: np_mcap | E1: gsector | F1: conm | G1: SEQqr | H1: IBqr_r4q | I1: seqqr_adj | J1: SEQ_1YR_VAL | K1: SALE_1YR_GRTH | L1: np_bb_5yr | M1: flag_tstk0_decseq_bb | N1: np_roe | O1: duration
A2: 2021-03-31 | B2: 1878 | C2: ADSK | D2: 60862.14 | E2: 45 | F2: AUTODESK INC | G2: 965.5 | H2: 1208.2 | I2: 965.5 | J2: -139.1 | K2: 0.1576214763 | L2: 2531.5
A3: 2021-03-31 | B3: 1932 | C3: BTI | D3: 88544.10526 | E3: 30 | F3: BRITISH AMER TOBACCO PLC | G3: 85612.863 | I3: 85612.863 | J3: 89290.048 | L3: 6451.275
A4: 2021-03-31 | B4: 2504 | C4: UIS | D4: 1601.46 | E4: 45 | F4: UNISYS CORP | G4: -356.8 | H4: -317.7 | I4: -242.4 | J4: -1155.8 | K4: -0.309054312 | L4: 0
A5: 2021-03-31 | B5: 3036 | C5: CBB | D5: 777.95335 | E5: 50 | F5: CINCINNATI BELL INC | G5: -191.1 | H5: -55.6 | I5: -186.3 | J5: -135.2 | K5: 0.0150322119 | L5: 4.8 | M5: 1
A6: 2021-03-31 | B6: 4632 | C6: CLBS | D6: 37.39954 | E6: 35 | F6: CALADRIUS BIOSCIENCES INC | G6: 32.496 | H6: -8.15 | I6: 33.204 | J6: 21.524 | L6: -38.703 | N6: -0.378647092
A7: 2021-03-31 | B7: 5342 | C7: MGI | D7: 476.44326 | E7: 45 | F7: MONEYGRAM INTERNATIONAL INC | G7: -237 | H7: -7.9 | I7: -237 | J7: -222.1 | K7: -0.052836355 | L7: -31.9
A8: 2021-03-31 | B8: 5395 | C8: GYRO | D8: 22.77888 | E8: 60 | F8: GYRODYNE LLC | L8: 0
A9: 2021-03-31 | B9: 5492 | C9: LHX | D9: 42204.0564 | E9: 20 | F9: L3HARRIS TECHNOLOGIES INC | G9: 20724 | I9: 20724 | J9: 3363 | L9: 4702
A10: 2021-03-31 | B10: 5750 | C10: HOV | D10: 650.51248 | E10: 25 | F10: HOVNANIAN ENTRPRS INC -CL A | G10: -417.248 | H10: 79.035 | I10: -301.888 | J10: -384.419 | K10: 0.1380651697 | L10: 0
A11: 2021-03-31 | B11: 5888 | C11: TLGT | D11: 3.9764632 | E11: 35 | F11: TELIGENT INC | G11: -40.09 | H11: -46.976 | I11: -40.09 | J11: -0.155 | K11: -0.230369082 | L11: -0.766
A12: 2021-03-31 | B12: 6081 | C12: NAV | D12: 4389.791 | E12: 20 | F12: NAVISTAR INTERNATIONAL CORP | G12: -3833 | H12: -393 | I12: -3701 | J12: -3598 | K12: -0.29832958 | L12: -284
A13: 2021-03-31 | B13: 6639 | C13: LEE | D13: 150.967285 | E13: 50 | F13: LEE ENTERPRISES INC | G13: -14.354 | H13: 7.476 | I13: -14.354 | J13: -32.677 | K13: 0.4263784385 | L13: 1.716
A14: 2021-03-31 | B14: 6733 | C14: LB | D14: 17197.08 | E14: 25 | F14: L BRANDS INC | G14: -662 | H14: 844 | I14: -304 | J14: -1141 | K14: -0.082623509 | L14: 1046
A15: 2021-03-31 | B15: 7085 | C15: MAS | D15: 15466.18 | E15: 20 | F15: MASCO CORP | G15: 195 | H15: 810 | I15: 195 | J15: -235 | K15: 0.0717161175 | L15: 3057
A16: 2021-03-31 | B16: 7316 | C16: MIK | D16: 3106.87952 | E16: 25 | F16: MICHAELS COS INC | G16: -1197.17 | H16: 294.935 | I16: 66.393 | J16: -262.224 | K16: 0.0392495165 | L16: 1263.563 | M16: 1
A17: 2021-03-31 | B17: 7585 | C17: MSI | D17: 31855.67 | E17: 45 | F17: MOTOROLA SOLUTIONS INC | G17: -558 | H17: 949 | I17: -558 | J17: -700 | K17: -0.059972106 | L17: 1819
A18: 2021-03-31 | B18: 7632 | C18: INTG | D18: 83.39336 | E18: 60 | F18: INTERGROUP CORP | G18: -47.638 | H18: 0.12 | I18: -32.387 | J18: -28.977 | K18: -0.553016538 | L18: 3.218
A19: 2021-03-31 | B19: 8867 | C19: QMCO | D19: 346.14482 | E19: 45 | F19: QUANTUM CORP | G19: -193.976 | H19: -21.834 | I19: -193.976 | J19: -195.467 | K19: -0.173792077 | L19: -10.783
A20: 2021-03-31 | B20: 9355 | C20: SFE | D20: 142.4357 | E20: 40 | F20: SAFEGUARD SCIENTIFICS INC | G20: 62.875 | H20: -37.615 | I20: 73.075 | J20: 115.765 | L20: 5.716 | N20: -0.324925496
A21: 2021-03-31 | B21: 10991 | C21: SGMS | D21: 3659.4 | E21: 25 | F21: SCIENTIFIC GAMES CORP | G21: -2653 | H21: -569 | I21: -2478 | J21: -2037 | K21: -0.198823529 | L21: 16.2
A22: 2021-03-31 | B22: 11649 | C22: YELL | D22: 441.18768 | E22: 20 | F22: YELLOW CORP | G22: -223.3 | H22: -53.5 | I22: -130.6 | J22: -348.5 | K22: -0.07339054 | L22: 2.1
A23: 2021-03-31 | B23: 11703 | C23: FLUX | D23: 157.89935 | E23: 20 | F23: FLUX POWER HOLDINGS INC | G23: 6.623 | H23: -14.563 | I23: 6.623 | L23: -18.603
A24: 2021-03-31 | B24: 12321 | C24: VGZ | D24: 109.36232 | E24: 15 | F24: VISTA GOLD CORP | G24: 15.851 | H24: 0.42 | I24: 15.851 | J24: 12.646 | L24: -17.556 | N24: 0.0332120829
A25: 2021-03-31 | B25: 12833 | C25: DKL | D25: 1563.51357 | E25: 10 | F25: DELEK LOGISTICS PARTNERS LP | G25: -108.301 | H25: 159.256 | I25: -108.301 | J25: -151.119 | K25: -0.035229935 | L25: -0.094
A26: 2021-03-31 | B26: 12964 | C26: CDZI | D26: 339.50518 | E26: 55 | F26: CADIZ INC | G26: -22.516 | H26: -37.148 | I26: -22.516 | J26: -86.643 | K26: 0.1609977324 | L26: -55.216
A27: 2021-03-31 | B27: 13963 | C27: VGR | D27: 2138.88375 | E27: 30 | F27: VECTOR GROUP LTD | G27: -659.687 | H27: 92.938 | I27: -659.687 | J27: -685.464 | K27: 0.0610566248 | L27: -88.146
A28: 2021-03-31 | B28: 14269 | C28: HLF | D28: 5327.636 | E28: 30 | F28: HERBALIFE NUTRITION LTD | G28: -856.1 | H28: 372.6 | I28: -527.2 | J28: -61.1 | K28: 0.1362900084 | L28: 2547.9
A29: 2021-03-31 | B29: 14489 | C29: DELL | D29: 66024.35 | E29: 45 | F29: DELL TECHNOLOGIES INC | G29: 1410 | H29: 2431 | I29: 1715 | J29: -805 | K29: 0.0019681829 | L29: 12539
A30: 2021-03-31 | B30: 14501 | C30: NUZE | D30: 52.00449 | E30: 30 | F30: NUZEE INC | G30: 7.696 | H30: -11.952 | I30: 7.696 | L30: -8.33
A31: 2021-03-31 | B31: 14639 | C31: NEN | D31: 202.19355 | E31: 60 | F31: NEW ENGLAND REALTY ASSC -LP | G31: -39.33 | H31: 4.293 | I31: -32.294 | J31: -28.271 | K31: 0.0487552041 | L31: 7.036 | M31: 1
A32: 2021-03-31 | B32: 15240 | C32: WWR | D32: 102.95364 | E32: 10 | F32: WESTWATER RESOURCES INC | G32: 57.471 | H32: -13.912 | I32: 57.729 | J32: 17.322 | L32: -109.987 | N32: -0.803140515
A33: 2021-03-31 | B33: 15489 | C33: HGEN | D33: 986.0757 | E33: 35 | F33: HUMANIGEN INC | G33: 45.545 | H33: -89.535 | I33: 45.545 | J33: 16.105 | L33: -238.044 | N33: -5.559453586
A34: 2021-03-31 | B34: 15539 | C34: PRTK | D34: 322.21134 | E34: 35 | F34: PARATEK PHARMACEUTCLS INC | G34: -79.884 | H34: -98.896 | I34: -79.884 | J34: -40.606 | K34: 0.6211930224 | L34: -255.989
A35: 2021-03-31 | B35: 15824 | C35: HGBL | D35: 84.7134 | E35: 40 | F35: HERITAGE GLOBAL INC | G35: 15.957 | H35: 3.918 | I35: 15.957 | J35: -17.105 | K35: -0.227141166 | L35: -35.565
A36: 2021-03-31 | B36: 16947 | C36: ATNM | D36: 103.53294 | E36: 35 | F36: ACTINIUM PHARMACEUTICALS INC | G36: 45.427 | H36: -20.437 | I36: 45.427 | J36: 9.936 | L36: -128.888 | N36: -2.056863929
A37: 2021-03-31 | B37: 16972 | C37: ANY | D37: 19.82817 | E37: 45 | F37: SPHERE 3D CORP | G37: 6.032 | H37: -5.896 | I37: 6.032 | J37: -0.76 | K37: -0.450520101 | L37: -33.764
A38: 2021-03-31 | B38: 17001 | C38: FUBO | D38: 1051.38572 | E38: 45 | F38: FUBOTV INC | G38: 492.527 | H38: -421.075 | I38: 492.527 | L38: -68.854
A39: 2021-03-31 | B39: 17101 | C39: IMGN | D39: 1579.4838 | E39: 35 | F39: IMMUNOGEN INC | G39: 89.57 | H39: -44.372 | I39: 89.57 | J39: -76.121 | K39: 0.6080879046 | L39: -472.902
A40: 2021-03-31 | B40: 17175 | C40: KTRA | D40: 45.01032 | E40: 35 | F40: KINTARA THERAPEUTICS INC | G40: 17.585 | H40: -30.711 | I40: 17.585 | J40: 5.481 | L40: -58.005 | N40: -5.603174603
A41: 2021-03-31 | B41: 17651 | C41: RZLT | D41: 58.96512 | E41: 35 | F41: REZOLUTE INC | G41: 35.886 | H41: -19.304 | I41: 35.886 | L41: -41
A42: 2021-03-31 | B42: 17826 | C42: NXE | D42: 1367.66058 | E42: 10 | F42: NEXGEN ENERGY LTD | G42: 104.9827093 | H42: -44.35817378 | I42: 104.9827093 | J42: 130.1452243 | L42: -22.87555501 | N42: -0.34083597
A43: 2021-03-31 | B43: 17997 | C43: CSTM | D43: 2027.4534 | E43: 15 | F43: CONSTELLIUM SE | G43: -203.145 | H43: -29.159 | I43: -203.145 | J43: -174.468 | K43: -0.079526854 | L43: -311.37
A44: 2021-03-31 | B44: 18172 | C44: ONTX | D44: 184.3449972 | E44: 35 | F44: ONCONOVA THERAPEUTICS INC | G44: 12.215 | H44: -24.475 | I44: 12.215 | J44: -6.041 | K44: -0.907775769 | L44: -111.587
A45: 2021-03-31 | B45: 18173 | C45: EVOK | D45: 48.71826 | E45: 35 | F45: EVOKE PHARMA INC | G45: -3.215 | H45: -13.155 | I45: -3.215 | J45: 4.381 | L45: -35.569 | N45: -3.002739101
A46: 2021-03-31 | B46: 18509 | C46: IPWR | D46: 39.389 | E46: 20 | F46: IDEAL POWER INC | G46: 4.409 | H46: -7.45 | I46: 4.422 | J46: 1.598 | L46: -20.279 | N46: -4.662077597
A47: 2021-03-31 | B47: 18561 | C47: BNFT | D47: 445.89728 | E47: 45 | F47: BENEFITFOCUS INC | G47: 25.353 | H47: -31.185 | I47: 25.353 | J47: -27.069 | K47: -0.01503632 | L47: -83.073
A48: 2021-03-31 | B48: 18572 | C48: ISEE | D48: 556.94778 | E48: 35 | F48: IVERIC BIO INC | G48: 191.563 | H48: -84.547 | I48: 191.563 | J48: 117.203 | L48: -206.564 | N48: -0.72137232
A49: 2021-03-31 | B49: 18624 | C49: PINC | D49: 4137.45165 | E49: 35 | F49: PREMIER INC | G49: 2172.416 | H49: 277.237 | I49: 2172.416 | J49: -409.162 | K49: 0.1676750335 | L49: 577.628
A50: 2021-03-31 | B50: 18748 | C50: VJET | D50: 75.4416 | E50: 20 | F50: VOXELJET AG | G50: 27.358 | H50: -18.036 | I50: 28.951 | J50: -54.558 | K50: -0.124262339 | L50: 1.593 | M50: 1
A51: 2021-03-31 | B51: 18878 | C51: GLYC | D51: 147.54418 | E51: 35 | F51: GLYCOMIMETICS INC | G51: 128.219 | H51: -51.027 | I51: 128.219 | J51: 154.201 | L51: -285.626 | N51: -0.330912251
A52: 2021-03-31 | B52: 18885 | C52: CUEN | D52: 36.219168 | E52: 50 | F52: CUENTAS INC | G52: 0.931 | H52: -8.101 | I52: 0.931 | L52: -0.75
A53: 2021-03-31 | B53: 19025 | C53: REPH | D53: 79.79679 | E53: 35 | F53: RECRO PHARMA INC | G53: -14.1 | H53: -27.501 | I53: -14.1 | J53: -6.712 | K53: -0.329775547 | L53: -91.438
A54: 2021-03-31 | B54: 19042 | C54: WBAI | D54: 918.93137 | E54: 25 | F54: 500.COM LTD -ADR | G54: 66.06 | H54: -70.062 | I54: 87.237 | J54: 160.017 | L54: -98.477 | N54: -0.437840979
A55: 2021-03-31 | B55: 19071 | C55: CWH | D55: 1536.18188 | E55: 25 | F55: CAMPING WORLD HOLDINGS INC | G55: 26.774 | H55: 122.345 | I55: 41.961 | J55: -32.602 | K55: 0.1133626014 | L55: -332.628
A56: 2021-03-31 | B56: 19267 | C56: DRTT | D56: 261.66429 | E56: 20 | F56: DIRTT ENVIRONMENTL SOLUTIONS | G56: 124.9868786 | H56: -4.39610491 | I56: 124.9868786 | L56: -0.072609474
A57: 2021-03-31 | B57: 19425 | C57: GNCA | D57: 143.68149 | E57: 35 | F57: GENOCEA BIOSCIENCES INC | G57: 8.982 | H57: -43.714 | I57: 8.982 | J57: 25.042 | L57: -196.501 | N57: -1.745627346
A58: 2021-03-31 | B58: 19458 | C58: SESN | D58: 365.17 | E58: 35 | F58: SESEN BIO INC | G58: -9.227 | H58: -22.397 | I58: -9.227 | J58: -26.7 | L58: -139.361
A59: 2021-03-31 | B59: 19600 | C59: CBAY | D59: 312.74698 | E59: 35 | F59: CYMABAY THERAPEUTICS INC | G59: 156.635 | H59: -64.648 | I59: 156.635 | J59: 212.591 | L59: -352.636 | N59: -0.304095658
A60: 2021-03-31 | B60: 19717 | C60: NLTX | D60: 515.50587 | E60: 35 | F60: NEOLEUKIN THERAPEUTICS INC | G60: 200.34 | H60: -28.738 | I60: 200.34 | J60: 66.875 | L60: -240.869 | N60: -0.429727103
A61: 2021-03-31 | B61: 19761 | C61: HEPA | D61: 16.606 | E61: 35 | F61: HEPION PHARMACEUTICALS INC | G61: 12.873 | H61: -17.294 | I61: 12.873 | J61: 16.226 | L61: -87.954 | N61: -1.065820288
A62: 2021-03-31 | B62: 19771 | C62: GLMD | D62: 73.10016 | E62: 35 | F62: GALMED PHARMACEUTICALS LTD | G62: 53.656 | H62: -26.78 | I62: 53.656 | J62: 77.423 | L62: -88.674 | N62: -0.345892048
A63: 2021-03-31 | B63: 19802 | C63: RMNI | D63: 685.36182 | E63: 45 | F63: RIMINI STREET INC | G63: -63.084 | H63: 12.98 | I63: -63.084 | J63: -91.277 | K63: 0.1627029873 | L63: -170.444
A64: 2021-03-31 | B64: 20010 | C64: AGRX | D64: 182.13312 | E64: 35 | F64: AGILE THERAPEUTICS INC | G64: 49.328 | H64: -51.853 | I64: 49.328 | J64: 45.745 | L64: -148.008 | N64: -1.133522789
A65: 2021-03-31 | B65: 20018 | C65: ALDX | D65: 458.94816 | E65: 35 | F65: ALDEYRA THERAPEUTICS INC | G65: 69.17 | H65: -39.423 | I65: 69.17 | J65: 50.879 | L65: -183.408 | N65: -0.774838342
A66: 2021-03-31 | B66: 20042 | C66: ADMS | D66: 138.5616 | E66: 35 | F66: ADAMAS PHARMACEUTICALS INC | G66: -49.976 | H66: -57.403 | I66: -49.976 | J66: -0.893 | K66: 0.3628310486 | L66: -216.873
A67: 2021-03-31 | B67: 20225 | C67: NERV | D67: 124.60808 | E67: 35 | F67: MINERVA NEUROSCIENCES INC | G67: 58.023 | H67: -20.651 | I67: 58.023 | J67: 55.527 | L67: -151.894 | N67: -0.371909161
A68: 2021-03-31 | B68: 20233 | C68: TBPH | D68: 1312.93448 | E68: 35 | F68: THERAVANCE BIOPHARMA INC | G68: -303.751 | H68: -278.017 | I68: -303.751 | J68: -223.84 | K68: -0.021208489 | L68: -392.793
A69: 2021-03-31 | B69: 20567 | C69: MRNS | D69: 473.301 | E69: 35 | F69: MARINUS PHARMACEUTICALS INC | G69: 87.423 | H69: -65.415 | I69: 87.423 | J69: 34.071 | L69: -235.288 | N69: -1.919961257
A70: 2021-03-31 | B70: 20570 | C70: MDCA | D70: 229.4916 | E70: 50 | F70: MDC PARTNERS INC | G70: -210.742 | H70: -2.629 | I70: -210.742 | J70: -214.251 | K70: -0.122363029 | L70: -186.539
A71: 2021-03-31 | B71: 20600 | C71: NG | D71: 2894.40912 | E71: 15 | F71: NOVAGOLD RESOURCES LTD | G71: 110.727 | H71: -33.564 | I71: 110.727 | J71: 137.954 | L71: 2.849 | N71: -0.243298491
A72: 2021-03-31 | B72: 20720 | C72: RLMD | D72: 570.01469 | E72: 35 | F72: RELMADA THERAPEUTICS INC | G72: 122.21 | H72: -29.222 | I72: 122.21 | L72: -38.497
A73: 2021-03-31 | B73: 20898 | C73: SLNO | D73: 100.31616 | E73: 35 | F73: SOLENO THERAPEUTICS INC | G73: 45.547 | H73: -24.639 | I73: 45.547 | J73: 14.947 | L73: -120.569 | N73: -1.648424433
A74: 2021-03-31 | B74: 20944 | C74: SHLX | D74: 5247.6892 | E74: 10 | F74: SHELL MIDSTREAM PARTNERS LP | G74: -481 | H74: 543 | I74: -481 | J74: -775 | K74: -0.043737575 | L74: -2069.3
A75: 2021-03-31 | B75: 21003 | C75: ZSAN | D75: 126.56184 | E75: 35 | F75: ZOSANO PHARMA CORP | G75: 47.515 | H75: -33.369 | I75: 47.515 | J75: 9.392 | L75: -179.618 | N75: -3.552917376
A76: 2021-03-31 | B76: 21012 | C76: ATRA | D76: 1197.22192 | E76: 35 | F76: ATARA BIOTHERAPEUTICS INC | G76: 462.339 | H76: -306.62 | I76: 462.339 | J76: 290.781 | L76: -999.9 | N76: -1.054470547
A77: 2021-03-31 | B77: 21032 | C77: VKTX | D77: 463.0912 | E77: 35 | F77: VIKING THERAPEUTICS INC | G77: 244.344 | H77: -39.495 | I77: 244.344 | J77: 277.119 | L77: -341.379 | N77: -0.14252
A78: 2021-03-31 | B78: 21033 | C78: TTOO | D78: 239.68548 | E78: 35 | F78: T2 BIOSYSTEMS INC | G78: 17.574 | H78: -50.93 | I78: 17.574 | J78: -25.912 | K78: 0.9001133466 | L78: -238.299
A79: 2021-03-31 | B79: 21208 | C79: EARS | D79: 17.60532 | E79: 35 | F79: AURIS MEDICAL HOLDING LTD | G79: 4.73 | H79: -5.962 | I79: 4.73 | J79: -0.759 | L79: -120.128
A80: 2021-03-31 | B80: 21223 | C80: CFRX | D80: 133.488 | E80: 35 | F80: CONTRAFECT CORP | G80: 18.397 | H80: -32.106 | I80: 18.397 | J80: 4.219 | L80: -174.623 | N80: -7.609860156
A81: 2021-03-31 | B81: 21263 | C81: PBLA | D81: 38.1728 | E81: 35 | F81: PANBELA THERAPEUTICS INC | G81: 8.448 | H81: -4.768 | I81: 8.448 | L81: -11.201
A82: 2021-03-31 | B82: 21452 | C82: FWP | D82: 46.51835 | E82: 35 | F82: FORWARD PHARMA A/S -ADR | G82: 75.481 | H82: -3.63 | I82: 75.481 | J82: 85.215 | L82: -179.717 | N82: -0.042598134
A83: 2021-03-31 | B83: 21540 | C83: W | D83: 31331.78875 | E83: 25 | F83: WAYFAIR INC | G83: -1191.897 | H83: 184.996 | I83: -809.235 | J83: -942.278 | K83: 0.549804718 | L83: 382.662 | M83: 1
A84: 2021-03-31 | B84: 21547 | C84: MDLY | D84: 4.69 | E84: 40 | F84: MEDLEY MANAGEMENT INC | G84: -8.132 | H84: -4.827 | I84: -1.769 | J84: -2.204 | K84: -0.301952594 | L84: 6.363 | M84: 1
A85: 2021-03-31 | B85: 21601 | C85: RYTM | D85: 940.89972 | E85: 35 | F85: RHYTHM PHARMACEUTICLS | G85: 166.528 | H85: -133.996 | I85: 166.528 | J85: 281.02 | L85: -455.827 | N85: -0.476820155
A86: 2021-03-31 | B86: 21627 | C86: CALA | D86: 170.75278 | E86: 35 | F86: CALITHERA BIOSCIENCES INC | G86: 122.596 | H86: -89.299 | I86: 122.596 | J86: 120.659 | L86: -290.159 | N86: -0.740093984
A87: 2021-03-31 | B87: 21635 | C87: AFMD | D87: 698.65866 | E87: 35 | F87: AFFIMED NV | G87: 55.208 | I87: 55.208 | J87: 37.377 | L87: -120.438
A88: 2021-03-31 | B88: 21807 | C88: CTXR | D88: 98.92706 | E88: 35 | F88: CITIUS PHARMACEUTICALS INC | G88: 25.201 | H88: -21.373 | I88: 25.201 | J88: 20.377 | L88: -57.297 | N88: -1.048878638
A89: 2021-03-31 | B89: 21824 | C89: BSGM | D89: 129.80858 | E89: 35 | F89: BIOSIG TECHNOLOGIES INC | G89: 28.651 | H89: -56.719 | I89: 28.651 | J89: 12.227 | L89: -60.526 | N89: -4.638832093
A90: 2021-03-31 | B90: 21984 | C90: VERB | D90: 65.3296 | E90: 45 | F90: VERB TECHNOLOGY CO INC | G90: 21.774 | H90: -20.142 | I90: 21.774 | L90: -23.544
A91: 2021-03-31 | B91: 22114 | C91: NMRD | D91: 175.1852 | E91: 35 | F91: NEMAURA MEDICAL INC | G91: 10.327 | H91: -5.475 | I91: 10.327 | J91: -0.234 | L91: -18.862
A92: 2021-03-31 | B92: 22260 | C92: HCA | D92: 63927.49284 | E92: 35 | F92: HCA HEALTHCARE INC | G92: 572 | H92: 3754 | I92: 572 | J92: -2808 | K92: 0.003837463 | L92: 7804
A93: 2021-03-31 | B93: 22570 | C93: AAU | D93: 64.0852693 | E93: 15 | F93: ALMADEN MINERALS LTD | G93: 53.68630175 | H93: -2.363567826 | I93: 53.68630175 | J93: 52.65439383 | L93: -36.34856655 | N93: -0.04488833
A94: 2021-03-31 | B94: 22638 | C94: ZI | D94: 8499.798 | E94: 50 | F94: ZOOMINFO TECHNOLOGIES | G94: 502.8 | H94: -9.1 | I94: 502.8 | L94: -696.4
A95: 2021-03-31 | B95: 22676 | C95: CHEK | D95: 14.56048 | E95: 35 | F95: CHECK-CAP LTD | G95: 6.234 | H95: -13.836 | I95: 6.234 | J95: 18.522 | L95: -47.619 | N95: -0.747003563
A96: 2021-03-31 | B96: 22697 | C96: TCON | D96: 127.39217 | E96: 35 | F96: TRACON PHARMACEUTICALS INC | G96: 25.072 | H96: -16.775 | I96: 25.072 | J96: 2.698 | L96: -99.118 | N96: -6.217568569
A97: 2021-03-31 | B97: 22703 | C97: GP | D97: 512.67018 | E97: 20 | F97: GREENPOWER MOTOR CO INC | G97: 36.956 | H97: -7.163 | I97: 36.956 | L97: -41.928
A98: 2021-03-31 | B98: 22803 | C98: CWBR | D98: 78.82968 | E98: 35 | F98: COHBAR INC | G98: 19.038 | H98: -15.274 | I98: 19.038 | J98: 10.978 | L98: -39.348 | N98: -1.391328111
A99: 2021-03-31 | B99: 22864 | C99: MFH | D99: 78.4972 | E99: 45 | F99: MERCURITY FNTCH HLD INC -ADR | G99: 11.263 | H99: 1.683 | I99: 11.263 | J99: -22.186 | K99: -0.935043204 | L99: -55.294
A100: 2021-03-31 | B100: 22927 | C100: BLPH | D100: 49.25829 | E100: 35 | F100: BELLEROPHON THERAPEUTICS INC | G100: 38.249 | H100: -24.728 | I100: 38.249 | J100: 3.591 | L100: -105.205 | N100: -6.886104149
A101: 2021-03-31 | B101: 22964 | C101: EPIX | D101: 976.22525 | E101: 35 | F101: ESSA PHARMA INC | G101: 74.101 | H101: -25.352 | I101: 74.101 | J101: 46.03 | L101: -105.549 | N101: -0.550771236
A102: 2021-03-31 | B102: 23077 | C102: UNIT | D102: 2550.81986 | E102: 60 | F102: UNITI GROUP INC | G102: -2141.658 | H102: -706.301 | I102: -2141.658 | J102: -1566.868 | K102: 0.0090089835 | L102: -921.599
A103: 2021-03-31 | B103: 23167 | C103: BLBD | D103: 678.11276 | E103: 20 | F103: BLUE BIRD CORP | G103: -54.23 | H103: 10.974 | I103: -3.948 | J103: -17.574 | K103: -0.158014678 | L103: 55.44
A104: 2021-03-31 | B104: 23241 | C104: OPGN | D104: 49.4975 | E104: 35 | F104: OPGEN INC | G104: 17.079 | H104: -21.618 | I104: 17.079 | J104: -1.557 | K104: 0.0718649985 | L104: -82.202
A105: 2021-03-31 | B105: 23291 | C105: BIOL | D105: 78.3888571 | E105: 35 | F105: BIOLASE INC | G105: 13.851 | H105: -14.255 | I105: 13.851 | J105: -1.066 | K105: -0.398898234 | L105: -50.121
A106: 2021-03-31 | B106: 23297 | C106: XBIT | D106: 501.79325 | E106: 35 | F106: XBIOTECH INC | G106: 346.139 | H106: 677.112 | I106: 346.139 | J106: 64.622 | L106: 330.683 | N106: 10.47804153
A107: 2021-03-31 | B107: 23337 | C107: TYME | D107: 231.70616 | E107: 35 | F107: TYME TECHNOLOGIES INC | G107: 9.166 | H107: -27.522 | I107: 9.166 | J107: 2.403 | L107: -83.674 | N107: -11.45318352
A108: 2021-03-31 | B108: 23339 | C108: KMPH | D108: 41.7404 | E108: 35 | F108: KEMPHARM INC | G108: -66.412 | H108: -12.76 | I108: -66.412 | J108: -81.547 | L108: -37.111
A109: 2021-03-31 | B109: 23552 | C109: PFHD | D109: 247.68271 | E109: 40 | F109: PROFESSIONAL HOLDING CORP | G109: 204.115 | H109: 3.752 | I109: 213.247 | L109: -55.618
A110: 2021-03-31 | B110: 23557 | C110: DTEA | D110: 98.57592 | E110: 25 | F110: DAVIDSTEA INC | G110: -3.410343832 | H110: -24.4619326 | I110: -2.335914347 | J110: -38.04003173 | K110: -0.258122445 | L110: 1.074429485 | M110: 1
A111: 2021-03-31 | B111: 23623 | C111: SMTI | D111: 195.622 | E111: 35 | F111: SANARA MEDTECH INC | G111: 5.854 | H111: -5.573 | I111: 5.854 | J111: 1.714 | L111: -0.463 | N111: -3.251458576
A112: 2021-03-31 | B112: 23705 | C112: PAVM | D112: 283.3608 | E112: 35 | F112: PAVMED INC | G112: 1.896 | H112: -34.276 | I112: 1.896 | J112: -3.824 | L112: -29.466
A113: 2021-03-31 | B113: 23714 | C113: CYH | D113: 1752.35424 | E113: 35 | F113: COMMUNITY HEALTH SYSTEMS INC | G113: -1625 | H113: 511 | I113: -1625 | J113: -2218 | K113: -0.107570023 | L113: 14
A114: 2021-03-31 | B114: 23809 | C114: AZO | D114: 31151.5869 | E114: 25 | F114: AUTOZONE INC | G114: -1523.573 | H114: 1871.731 | I114: -787.951 | J114: -1520.689 | K114: 0.1086428781 | L114: 7563.203
A115: 2021-03-31 | B115: 23810 | C115: IO | D115: 30.67262 | E115: 10 | F115: ION GEOPHYSICAL CORP | G115: -72.702 | H115: -37.225 | I115: -72.702 | J115: -36.82 | K115: -0.297717528 | L115: -48.009
A116: 2021-03-31 | B116: 23843 | C116: WING | D116: 3775.29579 | E116: 25 | F116: WINGSTOP INC | G116: -341.31 | H116: 23.306 | I116: -341.31 | J116: -209.428 | K116: 0.2460736393 | L116: -2.262
A117: 2021-03-31 | B117: 23865 | C117: BW | D117: 492.49682 | E117: 20 | F117: BABCOCK & WILCOX ENTERPRISES | G117: -321.651 | H117: -4.32 | I117: -215.666 | J117: -192.661 | K117: -0.33798207 | L117: -168.759
A118: 2021-03-31 | B118: 23933 | C118: SIOX | D118: 147.73383 | E118: 35 | F118: SIO GENE THERAPIES INC | G118: 89.029 | H118: -45.742 | I118: 89.029 | J118: 5.047 | L118: -354.43 | N118: -9.063205865
A119: 2021-03-31 | B119: 23980 | C119: CATB | D119: 58.04276 | E119: 35 | F119: CATABASIS PHARMACEUTICALS | G119: 40.669 | H119: -37.3 | I119: 40.669 | J119: 35.72 | L119: -134.179 | N119: -1.044232923
A120: 2021-03-31 | B120: 24073 | C120: GPP | D120: 285.93488 | E120: 10 | F120: GREEN PLAINS PARTNERS LP | G120: -46.462 | H120: 41.147 | I120: -46.462 | J120: -75.747 | K120: 0.0116280481 | L120: 0
A121: 2021-03-31 | B121: 24083 | C121: VERX | D121: 3218.83912 | E121: 45 | F121: VERTEX INC | G121: 225.486 | H121: -78.937 | I121: 225.486 | L121: -420.738
A122: 2021-03-31 | B122: 24142 | C122: MYT | D122: 16.765119 | E122: 30 | F122: URBAN TEA INC | G122: 14.94 | H122: -2.107 | I122: 14.94 | J122: -22.807 | K122: -0.977478415 | L122: -17.886
A123: 2021-03-31 | B123: 24177 | C123: MCRB | D123: 1883.14081 | E123: 35 | F123: SERES THERAPEUTICS INC | G123: 174.75 | H123: -89.127 | I123: 174.75 | J123: -48.324 | K123: -0.037385886 | L123: -367.569
A124: 2021-03-31 | B124: 24426 | C124: XPEV | D124: 25169.95749 | E124: 25 | F124: XPENG INC | G124: 2905.195 | H124: -435.019 | I124: 2905.195 | L124: 0
A125: 2021-03-31 | B125: 24515 | C125: VTVT | D125: 152.42382 | E125: 35 | F125: VTV THERAPEUTICS INC | G125: -80.102 | H125: -8.499 | I125: -80.102 | J125: -49.023 | K125: 1.320549928 | L125: -78.869
A126: 2021-03-31 | B126: 24523 | C126: CHMA | D126: 180.92652 | E126: 35 | F126: CHIASMA INC | G126: 110.338 | H126: -67.018 | I126: 110.338 | J126: 96.74 | L126: -161.554 | N126: -0.69276411
A127: 2021-03-31 | B127: 24599 | C127: AGLE | D127: 353.96064 | E127: 35 | F127: AEGLEA BIOTHERAPEUTICS INC | G127: 136.274 | H127: -79.674 | I127: 136.274 | J127: 79.795 | L127: -314.246 | N127: -0.998483614
A128: 2021-03-31 | B128: 24966 | C128: GOVX | D128: 16.79292 | E128: 35 | F128: GEOVAX LABS INC | G128: 9.569 | H128: -2.958 | I128: 9.569 | L128: -11.161
A129: 2021-03-31 | B129: 25129 | C129: SRRA | D129: 180.84608 | E129: 35 | F129: SIERRA ONCOLOGY | G129: 105.36 | H129: -110.341 | I129: 105.36 | J129: 58.848 | L129: -173.291 | N129: -1.875016993
A130: 2021-03-31 | B130: 25332 | C130: LOOP | D130: 339.72813 | E130: 15 | F130: LOOP INDUSTRIES INC | G130: 45.035 | H130: -26.909 | I130: 45.035 | J130: 36.316 | L130: -75.662 | N130: -0.740968168
A131: 2021-03-31 | B131: 25377 | C131: NEOS | D131: 57.21825 | E131: 35 | F131: NEOS THERAPEUTICS INC | G131: -20.552 | H131: -21.857 | I131: -20.2 | J131: -2.676 | K131: -0.098354691 | L131: -109.488
A132: 2021-03-31 | B132: 25538 | C132: SYTA | D132: 33.3424 | E132: 45 | F132: SIYATA MOBILE INC | G132: 16.36447048 | H132: -6.946581078 | I132: 16.36447048 | L132: -14.69664856
A133: 2021-03-31 | B133: 25645 | C133: ACI | D133: 8898.29084 | E133: 30 | F133: ALBERTSONS COS INC | G133: 2973.8 | H133: 1062.2 | I133: 4864.3 | L133: 184.7
A134: 2021-03-31 | B134: 25750 | C134: APTO | D134: 530.95045 | E134: 35 | F134: APTOSE BIOSCIENCES INC | G134: 129.156 | H134: -48.234 | I134: 129.156 | J134: 27.428 | L134: -207.0104204 | N134: -1.758567887
A135: 2021-03-31 | B135: 25924 | C135: NAVB | D135: 55.29548 | E135: 35 | F135: NAVIDEA BIOPHARMACEUTICALS | G135: 0.17 | H135: -10.671 | I135: 0.17 | J135: -0.761 | K135: 0.2386018237 | L135: -18.988
A136: 2021-03-31 | B136: 25999 | C136: CBIO | D136: 111.37392 | E136: 35 | F136: CATALYST BIOSCIENCES INC | G136: 76.069 | H136: -56.241 | I136: 76.069 | J136: 68.336 | L136: -202.133 | N136: -0.823006907
A137: 2021-03-31 | B137: 26081 | C137: KURA | D137: 1871.30438 | E137: 35 | F137: KURA ONCOLOGY INC | G137: 610.905 | H137: -89.625 | I137: 610.905 | J137: 218.781 | L137: -767.86 | N137: -0.409656232
A138: 2021-03-31 | B138: 26167 | C138: BRP | D138: 924.67425 | E138: 40 | F138: BRP GROUP INC | G138: 223.43 | H138: -14.642 | I138: 223.43 | L138: -392.287
A139: 2021-03-31 | B139: 26204 | C139: AKTX | D139: 89.40624 | E139: 35 | F139: AKARI THERAPEUTICS PLC -ADR | G139: 4.858 | H139: -18.138 | I139: 4.858 | J139: 3.25 | L139: -107.076 | N139: -5.580923077
A140: 2021-03-31 | B140: 26349 | C140: AXSM | D140: 2116.11588 | E140: 35 | F140: AXSOME THERAPEUTICS INC | G140: 113.793 | H140: -102.901 | I140: 113.793 | J140: 178.722 | L140: -292.391 | N140: -0.575760119
A141: 2021-03-31 | B141: 26356 | C141: ARTL | D141: 24.63256 | E141: 35 | F141: ARTELO BIOSCIENCES INC | G141: 9.054 | H141: -4.784 | I141: 9.054 | J141: 4.963 | L141: -16.688 | N141: -0.963933105
A142: 2021-03-31 | B142: 26359 | C142: APLS | D142: 3266.7383 | E142: 35 | F142: APELLIS PHARMACEUTICALS | G142: 204.557 | H142: -344.874 | I142: 204.557 | J142: 34.23 | L142: -788.153 | N142: -10.0751972
A143: 2021-03-31 | B143: 26415 | C143: DTSS | D143: 69.7775 | E143: 45 | F143: DATASEA INC | G143: 3.095 | H143: -2.096 | I143: 3.095 | J143: 4.606 | L143: -6.079 | N143: -0.455058619
A144: 2021-03-31 | B144: 26636 | C144: SENS | D144: 701.13912 | E144: 35 | F144: SENSEONICS HLDGS INC | G144: -141.272 | H144: -175.168 | I144: -141.272 | J144: -8.649 | K144: -0.76766349 | L144: -294.215
A145: 2021-03-31 | B145: 26669 | C145: OCX | D145: 349.03269 | E145: 35 | F145: ONCOCYTE CORP | G145: 34.639 | H145: -31.577 | I145: 34.639 | J145: 29.335 | L145: -100.995 | N145: -1.076427476
A146: 2021-03-31 | B146: 26746 | C146: NTNX | D146: 5424.56128 | E146: 45 | F146: NUTANIX INC | G146: -758.392 | H146: -978.457 | I146: -758.392 | J146: -66.102 | K146: 0.0450331656 | L146: -382.551
A147: 2021-03-31 | B147: 26809 | C147: DFFN | D147: 58.740164 | E147: 35 | F147: DIFFUSION PHARMACEUTICALS | G147: 24.814 | H147: -14.185 | I147: 24.814 | J147: 20.134 | L147: -68.056 | N147: -0.704529651
A148: 2021-03-31 | B148: 26817 | C148: OTLK | D148: 286.16175 | E148: 35 | F148: OUTLOOK THERAPEUTICS INC | G148: -10.475 | H148: -33.092 | I148: -10.475 | J148: -25.406 | K148: -1 | L148: -177.306
A149: 2021-03-31 | B149: 26873 | C149: MBRX | D149: 47.06008377 | E149: 35 | F149: MOLECULIN BIOTECH INC | G149: 17.76 | H149: -17.355 | I149: 17.76 | J149: 15.571 | L149: -74.29 | N149: -1.114571961
A150: 2021-03-31 | B150: 26895 | C150: CRVS | D150: 86.4248 | E150: 35 | F150: CORVUS PHARMACEUTICALS INC | G150: 42.35 | H150: -44.389 | I150: 42.35 | J150: 80.413 | L150: -138.181 | N150: -0.552012734
A151: 2021-03-31 | B151: 26914 | C151: TRX | D151: 119.06672 | E151: 15 | F151: TANZANIAN GOLD CORPORATION | G151: 25.06820841 | H151: -11.48473313 | I151: 25.06820841 | J151: 14.34829794 | L151: -13.71435615 | N151: -0.800424774
A152: 2021-03-31 | B152: 26920 | C152: CRTD | D152: 37.2122 | E152: 50 | F152: CREATD INC | G152: 2.402 | H152: -23.335 | I152: 2.49 | L152: -6.573
A153: 2021-03-31 | B153: 27046 | C153: EIGR | D153: 282.4566 | E153: 35 | F153: EIGER BIOPHARMACEUTICALS INC | G153: 92.95 | H153: -63.165 | I153: 92.95 | J153: 71.659 | L153: -293.703 | N153: -0.881466389
A154: 2021-03-31 | B154: 27141 | C154: ENIC | D154: 5422.65752 | E154: 55 | F154: ENEL CHILE SA | H154: -77.717 | K154: -0.193826251 | L154: -855.19
A155: 2021-03-31 | B155: 27247 | C155: ZOM | D155: 1014.41688 | E155: 35 | F155: ZOMEDICA CORP | G155: 63.027 | H155: -16.912 | I155: 63.027 | J155: 2.095 | L155: -91.946 | N155: -8.072553699
A156: 2021-03-31 | B156: 27252 | C156: PLSE | D156: 598.8672 | E156: 35 | F156: PULSE BIOSCIENCES INC | G156: 32.704 | H156: -49.889 | I156: 32.704 | J156: 40.981 | L156: -132.324 | N156: -1.217369025
A157: 2021-03-31 | B157: 27274 | C157: NH | D157: 357.22485 | E157: 35 | F157: NANTHEALTH INC | G157: -111.784 | H157: -88.319 | I157: -111.784 | J157: -57.136 | K157: -0.237481894 | L157: -84.811
A158: 2021-03-31 | B158: 27299 | C158: COE | D158: 428.99835 | E158: 25 | F158: CHINA ONLINE EDUCATN GP -ADR | G158: -128.028 | H158: 16.093 | I158: -128.028 | J158: -145.533 | K158: 0.4568917783 | L158: -61.854
A159: 2021-03-31 | B159: 27354 | C159: SELB | D159: 485.2429 | E159: 35 | F159: SELECTA BIOSCIENCES INC | G159: -7.382 | H159: -68.318 | I159: -7.382 | J159: -4.915 | K159: 11.20302376 | L159: -250.984
A160: 2021-03-31 | B160: 27373 | C160: VVV | D160: 4770.81 | E160: 15 | F160: VALVOLINE INC | G160: -55 | H160: 331 | I160: -55 | J160: -196 | K160: -0.016803279 | L160: -226
A161: 2021-03-31 | B161: 27699 | C161: AZRX | D161: 38.70188 | E161: 35 | F161: AZURRX BIOPHARMA INC | G161: 14.065 | H161: -16.553 | I161: 14.065 | J161: 3.202 | L161: -45.854 | N161: -5.169581512
A162: 2021-03-31 | B162: 27716 | C162: MDGL | D162: 1813.97076 | E162: 35 | F162: MADRIGAL PHARMACEUTICALS INC | G162: 239.97 | H162: -202.244 | I162: 239.97 | J162: 416.565 | L162: -499.417 | N162: -0.485504063
A163: 2021-03-31 | B163: 27905 | C163: NOVN | D163: 227.292 | E163: 35 | F163: NOVAN INC | G163: 2.977 | H163: -29.293 | I163: 3.132 | J163: -23.632 | K163: 0.0049019608 | L163: -136.427
A164: 2021-03-31 | B164: 27922 | C164: GSUM | D164: 67.5831 | E164: 45 | F164: GRIDSUM HOLDING INC -ADR | G164: -74.37 | H164: -61.365 | I164: -74.37 | J164: -3.621 | K164: -0.075769315 | L164: -10.67
A165: 2021-03-31 | B165: 27925 | C165: AVID | D165: 931.43653 | E165: 45 | F165: AVID TECHNOLOGY INC | G165: -144.212 | H165: 19.347 | I165: -144.098 | J165: -168.864 | K165: -0.087447478 | L165: 0.114 | M165: 1
A166: 2021-03-31 | B166: 27939 | C166: TENX | D166: 23.9761 | E166: 35 | F166: TENAX THERAPEUTICS INC | G166: 7.404 | H166: -9.813 | I166: 7.404 | J166: 6.537 | L166: -19.357 | N166: -1.501147315
A167: 2021-03-31 | B167: 28421 | C167: MYOV | D167: 1870.1046 | E167: 35 | F167: MYOVANT SCIENCES LTD | G167: -270.657 | H167: -238.684 | I167: -270.657 | J167: -48.888 | L167: -567.829
A168: 2021-03-31 | B168: 28785 | C168: WINA | D168: 696.31605 | E168: 25 | F168: WINMARK CORP | G168: -8.834 | H168: 30.192 | I168: -8.834 | J168: -13.83 | K168: -0.066388599 | L168: 183.937
A169: 2021-03-31 | B169: 29039 | C169: ENIA | D169: 12904.23648 | E169: 55 | F169: ENEL AMERICAS SA | H169: 1279.085 | K169: -0.147132879 | L169: -2856.56
A170: 2021-03-31 | B170: 29207 | C170: BYSI | D170: 337.81212 | E170: 35 | F170: BEYONDSPRING INC | G170: 24.044 | H170: -57.45 | I170: 24.044 | J170: 20.475 | L170: -179.892 | N170: -2.805860806
A171: 2021-03-31 | B171: 29275 | C171: PRTH | D171: 466.13204 | E171: 45 | F171: PRIORITY TECHNLGY HLDNGS INC | G171: -98.261 | H171: 19.496 | I171: -95.873 | J171: -108.539 | K171: -0.051189262 | L171: -44.883
A172: 2021-03-31 | B172: 29293 | C172: MBOT | D172: 60.48908 | E172: 35 | F172: MICROBOT MEDICAL INC | G172: 26.476 | H172: -8.402 | I172: 26.476 | J172: 9.778 | L172: -46.508 | N172: -0.859275926
A173: 2021-03-31 | B173: 29418 | C173: NDRA | D173: 65.0416 | E173: 35 | F173: ENDRA LIFE SCIENCES INC | G173: 3.335 | H173: -14.284 | I173: 3.335 | J173: 1.403 | L173: -28.138 | N173: -10.18104063
A174: 2021-03-31 | B174: 29558 | C174: PIXY | D174: 48.116 | E174: 20 | F174: SHIFTPIXY INC | G174: 4.156 | H174: -91.553 | I174: 4.156 | J174: -3.419 | K174: -0.817732789 | L174: -21.801
A175: 2021-03-31 | B175: 29666 | C175: INSE | D175: 208.14245 | E175: 25 | F175: INSPIRED ENTERTAINMENT | G175: -95 | H175: -54.4 | I175: -95 | J175: -31.8 | K175: 0.6243858418 | L175: -1.645
A176: 2021-03-31 | B176: 29850 | C176: TV | D176: 4997.04886 | E176: 50 | F176: GRUPO TELEVISA SAB | G176: 3166.885 | H176: -73.684 | I176: 3792.32 | J176: 5375.841 | L176: 286.486 | N176: -0.013706507
A177: 2021-03-31 | B177: 29914 | C177: LPTX | D177: 113.3502 | E177: 35 | F177: LEAP THERAPEUTICS INC | G177: 46.651 | H177: -27.514 | I177: 46.651 | J177: -1.749 | L177: -156.607
A178: 2021-03-31 | B178: 29955 | C178: BHC | D178: 11281.09428 | E178: 35 | F178: BAUSCH HEALTH COMPANIES INC | G178: 535 | H178: -560 | I178: 580 | J178: -312.6 | K178: -0.066736426 | L178: 45 | M178: 1
A179: 2021-03-31 | B179: 30262 | C179: IFMK | D179: 40.5082 | E179: 30 | F179: IFRESH INC | G179: 20.702 | H179: 0.748 | I179: 20.702 | J179: -1.6 | K179: -0.141151922 | L179: -12.43
A180: 2021-03-31 | B180: 30280 | C180: REKR | D180: 659.92987 | E180: 20 | F180: REKOR SYSTEMS INC | G180: 31.86 | H180: -13.962 | I180: 31.86 | J180: -3.231 | K180: -0.522049689 | L180: -34.684
A181: 2021-03-31 | B181: 30281 | C181: LJPC | D181: 116.08272 | E181: 35 | F181: LA JOLLA PHARMACEUTICAL CO | G181: -85.515 | H181: -61.176 | I181: -85.515 | J181: -35.171 | K181: 0.4867920752 | L181: -234.355
A182: 2021-03-31 | B182: 30449 | C182: IPA | D182: 168.10858 | E182: 35 | F182: IMMUNOPRECISE ANTIBODIES LTD | G182: 25.23753388 | H182: -2.451428577 | I182: 25.23753388 | L182: -9.13031515
A183: 2021-03-31 | B183: 30571 | C183: ARD | D183: 6005.9076 | E183: 15 | F183: ARDAGH GROUP SA | G183: -359 | H183: -163 | I183: -359 | J183: -1638 | K183: -0.083991684 | L183: -367.873
A184: 2021-03-31 | B184: 30662 | C184: SIRI | D184: 25413.57 | E184: 50 | F184: SIRIUS XM HOLDINGS INC | G184: -2285 | H184: 131 | I184: -2266 | J184: -736 | K184: 0.0315627406 | L184: 8413.834
A185: 2021-03-31 | B185: 31094 | C185: BHVN | D185: 4130.86895 | E185: 35 | F185: BIOHAVEN PHRMCUTCL HLD | G185: -390.37 | H185: -766.796 | I185: -390.37 | J185: -7.424 | L185: -1006.378
A186: 2021-03-31 | B186: 31102 | C186: PRTG | D186: 78.517384 | E186: 35 | F186: PORTAGE BIOTECH INC | G186: 8.979 | H186: 124.055 | I186: 8.979 | L186: 0
A187: 2021-03-31 | B187: 31112 | C187: OVID | D187: 255.0087 | E187: 35 | F187: OVID THRPUTCS INC | G187: 63.643 | H187: -75.975 | I187: 63.643 | J187: 30.046 | L187: -204.036 | N187: -2.528622778
A188: 2021-03-31 | B188: 31177 | C188: SVRA | D188: 112.60912 | E188: 35 | F188: SAVARA INC | G188: 76.626 | H188: -67.593 | I188: 76.626 | J188: 106.803 | L188: -197.179 | N188: -0.632875481
A189: 2021-03-31 | B189: 31294 | C189: GTHX | D189: 917.02284 | E189: 35 | F189: G1 THERAPEUTICS INC | G189: 177.351 | H189: -99.254 | I189: 177.359 | J189: 255.535 | L189: -455.116 | N189: -0.38841646
A190: 2021-03-31 | B190: 31301 | C190: ELDN | D190: 13.62763998 | E190: 35 | F190: ELEDON PHARMACEUTICALS INC | G190: 186.455 | H190: -21.051 | I190: 186.455 | J190: 13.366 | L190: -110.164 | N190: -1.574966332
A191: 2021-03-31 | B191: 31370 | C191: NVOS | D191: 82.43585 | E191: 35 | F191: NOVO INTEGRATED SCIENCES INC | G191: 29.201 | H191: -5.598 | I191: 29.201 | L191: -0.092
A192: 2021-03-31 | B192: 31466 | C192: WOW | D192: 1180.26432 | E192: 50 | F192: WIDEOPENWEST INC | G192: -212.4 | H192: 14.4 | I192: -131.7 | J192: -166.2 | K192: 0.0022691569 | L192: -253.4
A193: 2021-03-31 | B193: 31626 | C193: CHNR | D193: 45.33802 | E193: 15 | F193: CHINA NATURAL RESOURCES INC | G193: -3.535 | H193: 0.006 | I193: -3.535 | J193: 47.146 | L193: -32.805 | N193: 0.0001272642
A194: 2021-03-31 | B194: 31656 | C194: ALRN | D194: 62.63972 | E194: 35 | F194: AILERON THERAPEUTIC INC | G194: 12.162 | H194: -21.157 | I194: 12.162 | J194: 16.048 | L194: -91.734 | N194: -1.318357428
A195: 2021-03-31 | B195: 31848 | C195: ATXI | D195: 101.66036 | E195: 35 | F195: AVENUE THERAPEUTICS INC | G195: 3.234 | H195: -9.573 | I195: 3.234 | J195: 11.961 | L195: -72.95 | N195: -0.800351141
A196: 2021-03-31 | B196: 32074 | C196: XELA | D196: 107.1806075 | E196: 45 | F196: EXELA TECHNOLOGIES INC | G196: -827.463 | H196: -393.761 | I196: -816.514 | J196: -362.362 | K196: -0.124128303 | L196: -193.244
A197: 2021-03-31 | B197: 32228 | C197: AVCT | D197: 111.80198 | E197: 45 | F197: AMERICAN VIRTUAL CL TECH INC | G197: 10.064 | H197: -12.178 | I197: 10.064 | J197: -10.528 | L197: 6.72
A198: 2021-03-31 | B198: 32233 | C198: DARE | D198: 56.78907 | E198: 35 | F198: DARE BIOSCIENCE INC | G198: -1.386 | H198: -22.826 | I198: -1.386 | J198: 1.81 | L198: -31.575 | N198: -12.61104972
A199: 2021-03-31 | B199: 32244 | C199: NEXT | D199: 314.3124 | E199: 10 | F199: NEXTDECADE CORP | G199: 174.596 | H199: -25.931 | I199: 175.603 | J199: 137.155 | L199: -179.093 | N199: -0.189063468
A200: 2021-03-31 | B200: 32254 | C200: GNPX | D200: 170.08984 | E200: 35 | F200: GENPREX INC | G200: 22.976 | H200: -15.14 | I200: 22.976 | J200: 3.531 | L200: -30.363 | N200: -4.287737185
... 4553 more rows

Sheet Appendix
A7: The information, data, analyses and opinions presented herein (a) do not constitute investment advice, (b) are provided solely for informational purposes and therefore are not, individually or collectively, an offer to buy or sell a security, (c) are not warranted to be correct, complete or accurate, and (d) are subject to change without notice. Kailash Capital, LLC and its affiliates (collectively, “Kailash Capital”) shall not be responsible for any trading decisions, damages or other losses resulting from, or related to, the information, data, analyses or opinions or their use. The information herein may not be reproduced or retransmitted in any manner without the prior written consent of Kailash Capital.
A9: Kailash Capital, in preparing the information, data, analyses and opinions presented herein, has obtained data, statistics and information from sources it believes to be reliable. Kailash Capital, however, does not perform an audit or seeks independent verification of any of the data, statistics, and information it receives.
A11: Kailash Capital and its affiliates do not provide tax, legal or accounting advice. This material has been prepared for informational purposes only, and is not intended to provide, and should not be relied on for, tax, legal or accounting advice. You should consult your own tax, legal and accounting advisors before engaging in any transaction.
A14: © 2021 Kailash Capital, LLC – All rights reserved.
